bitfinex-derivatives/quotes_BNBF0:USTF0_20250709
["timestamp","ask_amount","ask_price","bid_price","bid_amount"]
[1752092745659,0.26016649,669.28,668.54,2.69]
[1752092745857,0.26016649,669.28,668.55,1.54031332]
[1752092746058,0.26016649,669.28,668.56,1.54031332]
[1752092746258,0.26016649,669.28,668.57,1.54031332]
[1752092746460,0.26016649,669.28,668.58,1.54031332]
[1752092746665,0.26016649,669.28,668.54,2.69]
[1752092746856,0.26016649,669.28,668.55,1.54055041]
[1752092747060,0.26016649,669.28,668.56,1.54055041]
[1752092747263,0.26016649,669.28,668.57,1.54055041]
[1752092747560,0.26016649,669.28,668.58,1.54055041]
[1752092747762,0.26016649,669.28,668.59,1.54076663]
[1752092747963,0.26016649,669.28,668.54,2.69]
[1752092748166,0.26016649,669.28,668.55,1.54076663]
[1752092748362,0.26016649,669.28,668.56,1.54076663]
[1752092748560,0.26016649,669.28,668.57,1.54076663]
[1752092748762,0.26016649,669.28,668.54,2.69]
[1752092748965,0.26016649,669.28,668.55,1.54098531]
[1752092749165,0.26016649,669.28,668.56,1.54098531]
[1752092749463,0.26016649,669.28,668.57,1.54098531]
[1752092749663,0.26016649,669.28,668.54,2.69]
[1752092749863,0.26016649,669.28,668.55,1.54110673]
[1752092750066,0.26016649,669.28,668.56,1.54110673]
[1752092750362,0.26016649,669.28,668.57,1.54110673]
[1752092750567,0.26016649,669.28,668.54,2.69]
[1752092750768,0.26016649,669.28,668.55,1.54123606]
[1752092750968,0.26016649,669.28,668.56,1.54123606]
[1752092751168,0.26016649,669.28,668.57,1.54123606]
[1752092751368,0.26016649,669.28,668.54,2.69]
[1752092751565,0.26016649,669.28,668.55,1.54137555]
[1752092751767,0.26016649,669.28,668.56,1.54137555]
[1752092751971,0.26016649,669.28,668.57,1.54137555]
[1752092752173,0.26016649,669.28,668.54,2.69]
[1752092752373,0.26016649,669.28,668.55,1.54152543]
[1752092752569,0.26016649,669.28,668.56,1.54152543]
[1752092752774,0.26016649,669.28,668.57,1.54152543]
[1752092752974,0.26016649,669.28,668.54,2.69]
[1752092753175,0.26016649,669.28,668.55,1.54152543]
[1752092753369,0.26016649,669.28,668.56,1.54152543]
[1752092753574,0.26016649,669.28,668.57,1.54152543]
[1752092753772,0.26016649,669.28,668.54,2.69]
[1752092753973,0.26016649,669.28,668.55,1.54168741]
[1752092754173,0.26016649,669.28,668.56,1.54168741]
[1752092754472,0.26016649,669.28,668.57,1.54168741]
[1752092754679,0.26016649,669.28,668.54,2.69]
[1752092754871,0.26016649,669.28,668.55,1.54186208]
[1752092755072,0.26016649,669.28,668.54,2.69]
[1752092755073,0.26016649,669.28,668.56,1.54186208]
[1752092755375,3.60588599,669.28,668.57,1.54186208]
[1752092755573,3.60588599,669.28,668.54,2.69]
[1752092755772,3.60588599,669.28,668.55,1.54205104]
[1752092755976,0.26016649,669.28,668.56,1.54205104]
[1752092756271,0.26016649,669.28,668.57,1.54205104]
[1752092756470,0.26016649,669.28,668.54,2.69]
[1752092756674,0.26016649,669.28,668.55,1.5422544]
[1752092756874,0.26016649,669.28,668.56,1.5422544]
[1752092757074,0.26016649,669.28,668.57,1.5422544]
[1752092757272,0.26016649,669.28,668.58,1.54240576]
[1752092757472,3.60588599,669.28,668.54,2.69]
[1752092757674,3.60588599,669.28,668.55,1.54245079]
[1752092757973,0.26016649,669.28,668.56,1.54245079]
[1752092758179,0.26016649,669.28,668.57,1.54245079]
[1752092758378,0.26016649,669.28,668.58,1.54245079]
[1752092758675,3.3457195,669.12,668.54,2.69]
[1752092758877,3.3457195,669.13,668.54,2.69]
[1752092759674,0.26016649,669.28,668.55,1.54256176]
[1752092759878,0.26016649,669.28,668.56,1.54256176]
[1752092760080,0.26016649,669.28,668.57,1.54256176]
[1752092760379,3.3457195,669.23,668.26,1.66271428]
[1752092760580,3.3457195,669.22,668.27,1.54270932]
[1752092760780,3.3457195,669.22,668.28,1.54270932]
[1752092760978,3.3457195,669.22,668.29,1.54270932]
[1752092761179,3.3457195,669.21,668.3,1.54270932]
[1752092761376,3.3457195,669.23,668.31,1.54270932]
[1752092761581,3.3457195,669.25,668.32,1.54270932]
[1752092761877,3.3457195,669.21,668.33,1.54270932]
[1752092762079,3.3457195,669.21,668.34,1.54270932]
[1752092762280,3.3457195,669.22,668.35,1.54270932]
[1752092762476,3.3457195,669.21,668.36,1.54270932]
[1752092762676,3.3457195,669.16,668.37,1.54270932]
[1752092762877,3.3457195,669.16,668.38,1.54270932]
[1752092763079,3.3457195,669.11,668.1,1.66271428]
[1752092763278,3.3457195,669.1,668.11,1.54259036]
[1752092763481,3.3457195,669.08,668.12,1.54259036]
[1752092763678,3.3457195,669.09,668.13,1.54259036]
[1752092763880,3.3457195,669.09,668.14,1.54259036]
[1752092764083,3.3457195,669.09,668.15,1.54259036]
[1752092764283,3.3457195,669.11,668.16,1.54259036]
[1752092764478,3.3457195,669.11,668.17,1.54259036]
[1752092764681,3.3457195,669.11,668.18,1.54259036]
[1752092764880,3.3457195,669.11,668.19,1.54259036]
[1752092765081,3.3457195,669.11,668.2,1.54259036]
[1752092765284,3.3457195,669.08,668.21,1.54259036]
[1752092765485,3.3457195,669.07,668.22,1.54259036]
[1752092765685,3.3457195,669.08,668.23,1.54259036]
[1752092765885,3.3457195,669.08,668.24,1.54259036]
[1752092766082,3.3457195,669.08,668.25,1.54259036]
[1752092766281,3.3457195,669.09,668.26,1.54259036]
[1752092766584,0.26016649,669.28,668.27,1.54259036]
[1752092766787,0.26016649,669.28,668.28,1.54259036]
[1752092766983,0.26016649,669.28,668.29,1.5420156]
[1752092767285,0.26016649,669.28,668.3,1.5420156]
[1752092767482,0.26016649,669.28,668.14,2.228]
[1752092767684,0.26016649,669.28,668.15,1.54176275]
[1752092767882,3.3457195,669.14,668.16,1.54176275]
[1752092768086,3.3457195,669.12,668.14,2.228]
[1752092768285,3.3457195,669.15,668.14,2.228]
[1752092768890,3.3457195,669.11,668.14,2.228]
[1752092769287,3.3457195,669.14,668.14,2.228]
[1752092769492,3.3457195,669.1,668.14,2.228]
[1752092769690,3.3457195,668.94,668.14,2.228]
[1752092769893,3.3457195,668.92,668.14,2.228]
[1752092770289,3.3457195,668.96,668.14,2.228]
[1752092770593,3.3457195,668.94,668.14,2.228]
[1752092770893,3.3457195,668.92,668.14,2.228]
[1752092771093,3.3457195,668.95,668.14,2.228]
[1752092771392,3.3457195,668.98,668.14,2.228]
[1752092771593,3.3457195,669.0,668.14,2.228]
[1752092771893,3.3457195,668.98,668.14,2.228]
[1752092772293,3.3457195,669.01,668.14,2.228]
[1752092772692,3.3457195,669.02,668.14,2.228]
[1752092773196,0.26016649,669.28,668.14,2.228]
[1752092773197,3.3457195,669.06,668.14,2.228]
[1752092773491,3.3457195,669.05,668.14,2.228]
[1752092773995,3.3457195,669.04,668.14,2.228]
[1752092774192,3.3457195,669.06,668.14,2.228]
[1752092774696,3.3457195,669.07,668.14,2.228]
[1752092774996,3.3457195,669.06,668.14,2.228]
[1752092775196,3.3457195,669.07,668.14,2.228]
[1752092775394,3.3457195,669.06,668.14,2.228]
[1752092775895,3.3457195,669.08,668.14,2.228]
[1752092776297,3.3457195,669.09,668.14,2.228]
[1752092776697,3.3457195,669.1,668.14,2.228]
[1752092777198,3.3457195,669.15,668.14,2.228]
[1752092778297,3.3457195,669.16,668.14,2.228]
[1752092778500,3.3457195,669.15,668.14,2.228]
[1752092778696,3.3457195,669.16,668.14,2.228]
[1752092779101,3.3457195,669.17,668.14,2.228]
[1752092779602,3.3457195,669.14,668.14,2.228]
[1752092780299,3.3457195,669.15,668.14,2.228]
[1752092781206,3.3457195,669.17,668.14,2.228]
[1752092781905,3.3457195,669.16,668.14,2.228]
[1752092782905,3.3457195,669.23,668.14,2.228]
[1752092783106,3.3457195,669.24,668.14,2.228]
[1752092783306,3.3457195,669.22,668.14,2.228]
[1752092783506,3.3457195,669.17,668.14,2.228]
[1752092783704,3.3457195,669.23,668.14,2.228]
[1752092784207,3.3457195,669.24,668.14,2.228]
[1752092785102,3.3457195,669.26,668.14,2.228]
[1752092785404,3.3457195,669.25,668.14,2.228]
[1752092786108,3.3457195,669.26,668.14,2.228]
[1752092787309,3.3457195,669.27,668.14,2.228]
[1752092788107,3.3457195,669.19,668.14,2.228]
[1752092789312,3.3457195,669.2,668.14,2.228]
[1752092789811,3.3457195,669.09,668.14,2.228]
[1752092790111,3.3457195,669.1,668.14,2.228]
[1752092791424,3.3457195,669.11,668.14,2.228]
[1752092792219,0.26016649,669.28,668.14,2.228]
[1752092792220,3.3457195,669.12,668.14,2.228]
[1752092792420,3.3457195,669.11,668.14,2.228]
[1752092793615,3.3457195,669.1,668.14,2.228]
[1752092794116,3.3457195,669.11,668.14,2.228]
[1752092795919,0.26016649,669.28,668.14,2.228]
[1752092795920,3.3457195,669.1,668.14,2.228]
[1752092796717,3.3457195,669.09,668.14,2.228]
[1752092797319,3.3457195,669.08,668.14,2.228]
[1752092797821,3.3457195,669.09,668.14,2.228]
[1752092798120,3.3457195,669.15,668.14,2.228]
[1752092798423,3.3457195,669.14,668.14,2.228]
[1752092799024,3.3457195,669.13,668.14,2.228]
[1752092800125,3.3457195,669.15,668.14,2.228]
[1752092801425,3.3457195,669.14,668.14,2.228]
[1752092802629,3.3457195,669.12,668.14,2.228]
[1752092802829,0.26016649,669.28,668.14,2.228]
[1752092804226,3.3457195,669.24,668.14,2.228]
[1752092804524,3.3457195,669.23,668.14,2.228]
[1752092804725,3.3457195,669.16,668.14,2.228]
[1752092804929,3.3457195,669.21,668.14,2.228]
[1752092805125,3.3457195,669.23,668.14,2.228]
[1752092805332,0.26016649,669.28,668.15,1.52406326]
[1752092805529,0.26016649,669.28,668.14,2.228]
[1752092806029,0.26016649,669.28,668.15,1.52415463]
[1752092806226,0.26016649,669.28,668.16,1.52415463]
[1752092806429,0.26016649,669.28,668.17,1.52415463]
[1752092806633,0.26016649,669.28,668.18,1.52415463]
[1752092806825,0.26016649,669.28,668.19,1.52415463]
[1752092807028,0.26016649,669.28,668.2,1.52415463]
[1752092807323,0.26016649,669.28,668.14,2.228]
[1752092807324,0.26016649,669.28,668.21,1.52415463]
[1752092807525,0.26016649,669.28,668.14,2.228]
[1752092807725,0.26016649,669.28,668.15,1.52477395]
[1752092808026,0.26016649,669.28,668.16,1.52477395]
[1752092808230,3.3457195,669.26,668.17,1.52477395]
[1752092808428,3.3457195,669.26,668.18,1.52514744]
[1752092808731,3.3457195,669.26,668.19,1.52514744]
[1752092808927,3.3457195,669.26,668.2,1.52514744]
[1752092809127,3.3457195,669.27,668.21,1.52514744]
[1752092809331,3.3457195,669.27,668.22,1.52514744]
[1752092809531,3.3457195,669.25,668.14,2.228]
[1752092809731,3.3457195,669.25,668.15,1.52549411]
[1752092809933,3.3457195,669.25,668.16,1.52549411]
[1752092810133,3.3457195,669.25,668.17,1.52549411]
[1752092810334,3.3457195,669.24,668.18,1.52549411]
[1752092810528,3.3457195,669.24,668.19,1.52549411]
[1752092810734,0.26016649,669.28,668.2,3.19312055]
[1752092810933,0.26016649,669.28,668.21,3.19312055]
[1752092811228,0.26016649,669.28,668.22,1.52549411]
[1752092811433,0.26016649,669.28,668.23,1.52549411]
[1752092811628,0.26016649,669.28,668.24,1.52549411]
[1752092811833,0.26016649,669.28,668.25,1.52549411]
[1752092812129,0.26016649,669.28,668.26,1.52549411]
[1752092812428,0.26016649,669.28,668.27,1.52549411]
[1752092812630,0.26016649,669.28,668.28,1.52549411]
[1752092812934,0.26016649,669.28,668.29,1.52549411]
[1752092813128,0.26016649,669.28,668.3,1.52549411]
[1752092813333,0.26016649,669.28,668.31,1.52549411]
[1752092813628,0.26016649,669.28,668.32,1.52549411]
[1752092813828,0.26016649,669.28,668.33,1.52549411]
[1752092814029,0.26016649,669.28,668.34,1.52549411]
[1752092814229,0.26016649,669.28,668.35,1.52520915]
[1752092814428,0.26016649,669.28,668.22,1.66762253]
[1752092814429,0.26016649,669.28,668.36,1.52520915]
[1752092814733,0.26016649,669.28,668.37,1.52520915]
[1752092814932,0.26016649,669.28,668.38,1.52520915]
[1752092815230,0.26016649,669.28,668.39,1.52520915]
[1752092815437,0.26016649,669.28,668.4,1.52520915]
[1752092815733,0.26016649,669.28,668.41,1.52520915]
[1752092815937,0.26016649,669.28,668.42,1.52520915]
[1752092816134,0.26016649,669.28,668.43,1.52520915]
[1752092816335,0.26016649,669.28,668.14,2.228]
[1752092816336,0.26016649,669.28,668.44,1.52520915]
[1752092816536,0.26016649,669.28,668.45,1.52520915]
[1752092816738,0.26016649,669.28,668.46,1.52520915]
[1752092816935,0.26016649,669.28,668.47,1.52520915]
[1752092817139,0.26016649,669.28,668.48,1.52520915]
[1752092817341,0.26016649,669.28,668.19,1.66762253]
[1752092817540,0.26016649,669.28,668.2,1.52563671]
[1752092817736,0.26016649,669.28,668.21,1.52563671]
[1752092817935,0.26016649,669.28,668.22,1.52563671]
[1752092818138,0.26016649,669.28,668.24,1.66762253]
[1752092818537,0.26016649,669.28,668.25,1.52563671]
[1752092818740,0.26016649,669.28,668.26,1.52563671]
[1752092818941,0.26016649,669.28,668.27,1.52563671]
[1752092819137,0.26016649,669.28,668.28,1.52563671]
[1752092819341,0.26016649,669.28,668.24,1.66762253]
[1752092819342,0.26016649,669.28,668.29,1.52563671]
[1752092819539,0.26016649,669.28,668.3,1.52563671]
[1752092819738,0.26016649,669.28,668.31,1.52563671]
[1752092819942,0.26016649,669.28,668.09,2.21264334]
[1752092820139,0.26016649,669.28,668.25,1.66781786]
[1752092820442,0.26016649,669.28,668.26,1.5253828]
[1752092820638,0.26016649,669.28,668.27,1.5253828]
[1752092820939,0.26016649,669.28,668.28,1.5253828]
[1752092821143,0.26016649,669.28,668.29,1.5253828]
[1752092821343,0.26016649,669.28,668.3,1.5253828]
[1752092821642,0.26016649,669.28,668.31,1.5253828]
[1752092821943,0.26016649,669.28,668.32,1.5253828]
[1752092822141,0.26016649,669.28,668.33,1.5253828]
[1752092822441,0.26016649,669.28,668.34,1.5253828]
[1752092822740,0.26016649,669.28,668.35,1.5253828]
[1752092822945,0.26016649,669.28,668.36,1.5253828]
[1752092823145,0.26016649,669.28,668.37,1.5253828]
[1752092823342,0.26016649,669.28,668.38,1.5253828]
[1752092823645,0.26016649,669.28,668.39,1.5253828]
[1752092823844,0.26016649,669.28,668.4,1.5253828]
[1752092824143,0.26016649,669.28,668.41,1.5253828]
[1752092824344,0.26016649,669.28,668.42,1.5253828]
[1752092824545,0.26016649,669.28,668.43,1.5253828]
[1752092824841,0.26016649,669.28,668.44,1.5253828]
[1752092825045,0.26016649,669.28,668.45,1.5253828]
[1752092825244,0.26016649,669.28,668.46,1.5253828]
[1752092825442,0.26016649,669.28,668.26,1.877]
[1752092825643,0.26016649,669.28,668.27,1.52445643]
[1752092825845,0.26016649,669.28,668.28,1.52445643]
[1752092826045,0.26016649,669.28,668.29,1.52445643]
[1752092826241,0.26016649,669.28,668.3,1.52445643]
[1752092826446,0.26016649,669.28,668.31,1.52445643]
[1752092826742,0.26016649,669.28,668.32,1.52445643]
[1752092826945,0.26016649,669.28,668.33,1.52445643]
[1752092827146,0.26016649,669.28,668.34,1.52445643]
[1752092827346,0.26016649,669.28,668.35,1.52445643]
[1752092827544,0.26016649,669.28,668.36,1.52445643]
[1752092827740,0.26016649,669.28,668.37,1.52445643]
[1752092827941,0.26016649,669.28,668.38,1.52445643]
[1752092828242,0.26016649,669.28,668.39,1.52445643]
[1752092828441,0.26016649,669.28,668.4,1.52445643]
[1752092828643,0.26016649,669.28,668.41,1.52445643]
[1752092828842,0.26016649,669.28,668.42,1.52445643]
[1752092829145,0.26016649,669.28,668.43,1.52445643]
[1752092829345,0.26016649,669.28,668.44,1.52445643]
[1752092829543,0.26016649,669.28,668.45,1.52445643]
[1752092829742,0.26016649,669.28,668.26,1.877]
[1752092829743,0.26016649,669.28,668.46,1.52445643]
[1752092829943,0.26016649,669.28,668.26,1.877]
[1752092830147,0.26016649,669.28,668.27,1.52366175]
[1752092830347,0.26016649,669.28,668.28,1.52366175]
[1752092830547,0.26016649,669.28,668.29,1.52366175]
[1752092830744,0.26016649,669.28,668.3,1.52366175]
[1752092830945,0.26016649,669.28,668.31,1.52366175]
[1752092831244,0.26016649,669.28,668.32,1.52366175]
[1752092831543,0.26016649,669.28,668.33,1.52366175]
[1752092831845,0.26016649,669.28,668.34,1.52366175]
[1752092832047,0.26016649,669.28,668.35,1.52366175]
[1752092832245,0.26016649,669.28,668.36,1.52366175]
[1752092832444,0.26016649,669.28,668.37,1.52366175]
[1752092832645,0.26016649,669.28,668.38,1.52366175]
[1752092832845,0.26016649,669.28,668.39,1.52366175]
[1752092833044,0.26016649,669.28,668.4,1.52366175]
[1752092833246,0.26016649,669.28,668.41,1.52366175]
[1752092833548,0.26016649,669.28,668.42,1.52366175]
[1752092833744,0.26016649,669.28,668.43,1.52366175]
[1752092833950,0.26016649,669.28,668.44,1.52366175]
[1752092834148,0.26016649,669.28,668.45,1.52366175]
[1752092834348,0.26016649,669.28,668.46,1.52366175]
[1752092834544,0.26016649,669.28,668.47,1.52366175]
[1752092834750,0.26016649,669.28,668.26,1.877]
[1752092835049,0.26016649,669.28,668.27,1.52941341]
[1752092835245,0.26016649,669.28,668.28,1.52941341]
[1752092835450,0.26016649,669.28,668.29,1.52941341]
[1752092835649,0.26016649,669.28,668.3,1.52941341]
[1752092835950,0.26016649,669.28,668.31,1.52941341]
[1752092836150,0.26016649,669.28,668.32,1.52941341]
[1752092836450,0.26016649,669.28,668.33,1.52941341]
[1752092836648,0.26016649,669.28,668.34,1.52941341]
[1752092836848,0.26016649,669.28,668.35,1.52941341]
[1752092837148,0.26016649,669.28,668.36,1.52941341]
[1752092837349,0.26016649,669.28,668.37,1.52941341]
[1752092837552,0.26016649,669.28,668.38,1.52941341]
[1752092837750,0.26016649,669.28,668.39,1.52941341]
[1752092837955,0.26016649,669.28,668.4,1.52941341]
[1752092838155,0.26016649,669.28,668.41,1.52941341]
[1752092838357,0.26016649,669.28,668.42,1.52941341]
[1752092838556,0.26016649,669.28,668.43,1.52941341]
[1752092838754,0.26016649,669.28,668.44,1.52941341]
[1752092838956,0.26016649,669.28,668.45,1.52941341]
[1752092839157,0.26016649,669.28,668.46,1.52941341]
[1752092839357,0.26016649,669.28,668.47,1.52941341]
[1752092839657,0.26016649,669.28,668.48,1.52941341]
[1752092839953,0.26016649,669.28,668.49,1.52941341]
[1752092840153,0.26016649,669.28,668.5,1.52941341]
[1752092840353,0.26016649,669.28,668.26,1.877]
[1752092840555,0.26016649,669.28,668.27,1.52867804]
[1752092840751,0.26016649,669.28,668.28,1.52867804]
[1752092840952,0.26016649,669.28,668.29,1.52867804]
[1752092841157,0.26016649,669.28,668.3,1.52867804]
[1752092841356,0.26016649,669.28,668.31,1.52867804]
[1752092841652,0.26016649,669.28,668.32,1.52867804]
[1752092841852,0.26016649,669.28,668.33,1.52867804]
[1752092842051,0.26016649,669.28,668.34,1.52867804]
[1752092842252,0.26016649,669.28,668.35,1.52867804]
[1752092842457,0.26016649,669.28,668.36,1.52867804]
[1752092842757,0.26016649,669.28,668.37,1.52867804]
[1752092842953,0.26016649,669.28,668.38,1.52867804]
[1752092843156,0.26016649,669.28,668.39,1.52867804]
[1752092843356,0.26016649,669.28,668.4,1.52867804]
[1752092843557,0.26016649,669.28,668.41,1.52867804]
[1752092843758,0.26016649,669.28,668.26,1.877]
[1752092843759,0.26016649,669.28,668.42,1.52867804]
[1752092844060,0.26016649,669.28,668.43,1.52867804]
[1752092844360,0.26016649,669.28,668.44,1.52867804]
[1752092844659,0.26016649,669.28,668.45,1.52867804]
[1752092844860,0.26016649,669.28,668.46,1.52867804]
[1752092845155,0.26016649,669.28,668.47,1.52867804]
[1752092845360,0.26016649,669.28,668.48,1.52867804]
[1752092845559,0.26016649,669.28,668.49,1.52867804]
[1752092845760,0.26016649,669.28,668.5,1.52867804]
[1752092845957,0.26016649,669.28,668.26,1.877]
[1752092846156,0.26016649,669.28,668.27,1.52899289]
[1752092846455,0.26016649,669.28,668.26,1.877]
[1752092846456,0.26016649,669.28,668.28,1.52899289]
[1752092846657,0.26016649,669.28,668.29,1.52899289]
[1752092846859,0.26016649,669.28,668.3,1.52899289]
[1752092847056,0.26016649,669.28,668.31,1.52899289]
[1752092847259,0.26016649,669.28,668.32,1.52899289]
[1752092847459,0.26016649,669.28,668.33,1.52899289]
[1752092847759,0.26016649,669.28,668.34,1.52899289]
[1752092847957,0.26016649,669.28,668.35,1.52899289]
[1752092848161,0.26016649,669.28,668.36,1.52899289]
[1752092848358,0.26016649,669.28,668.37,1.52899289]
[1752092848657,0.26016649,669.28,668.38,1.52899289]
[1752092848861,0.26016649,669.28,668.39,1.52899289]
[1752092849162,0.26016649,669.28,668.4,1.52951993]
[1752092849362,0.26016649,669.28,668.41,1.52951993]
[1752092849561,0.26016649,669.28,668.42,1.52951993]
[1752092849756,0.26016649,669.28,668.43,1.52951993]
[1752092850061,0.26016649,669.28,668.44,1.52951993]
[1752092850261,0.26016649,669.28,668.45,1.52951993]
[1752092850561,0.26016649,669.28,668.46,1.52951993]
[1752092850756,0.26016649,669.28,668.47,1.52951993]
[1752092850959,0.26016649,669.28,668.48,1.52951993]
[1752092851156,0.26016649,669.28,668.49,1.52951993]
[1752092851460,0.26016649,669.28,668.5,1.52951993]
[1752092851758,0.26016649,669.28,668.51,1.52951993]
[1752092851963,3.3457195,669.79,668.52,1.52951993]
[1752092852261,0.26008191,669.4,668.53,1.52951993]
[1752092852561,3.3457195,669.92,668.54,1.52951993]
[1752092852861,0.26007219,669.4,668.55,1.52951993]
[1752092853059,3.3457195,669.91,668.56,1.52951993]
[1752092853260,0.26006539,669.4,668.57,1.52951993]
[1752092853461,3.3457195,669.9,668.58,1.52951993]
[1752092853757,0.26005859,669.43,668.59,1.52951993]
[1752092853958,3.3457195,669.88,668.6,1.52951993]
[1752092854156,3.3457195,669.87,668.61,1.52951993]
[1752092854358,0.26005859,669.43,668.62,1.52951993]
[1752092854561,3.3457195,669.93,668.63,1.52951993]
[1752092854756,3.3457195,669.93,668.38,1.66540134]
[1752092854757,0.26005081,669.43,668.64,1.52951993]
[1752092855058,3.3457195,669.89,668.65,1.52951993]
[1752092855258,0.26004207,669.47,668.66,1.52951993]
[1752092855457,0.26004207,669.47,668.67,1.52951993]
[1752092855655,3.3457195,669.89,668.68,1.52951993]
[1752092855862,0.26003818,669.5,668.69,1.52951993]
[1752092856061,3.3457195,669.8,668.7,1.52951993]
[1752092856257,0.26004304,669.5,668.71,1.52951993]
[1752092856456,0.26004304,669.5,668.72,1.52951993]
[1752092856656,0.26004304,669.5,668.73,1.52951993]
[1752092856858,0.26004304,669.5,668.74,1.52951993]
[1752092857160,0.26004304,669.5,668.75,1.52951993]
[1752092857355,0.26004304,669.5,668.76,1.52951993]
[1752092857558,0.26004304,669.5,668.77,1.52951993]
[1752092857762,0.26004304,669.5,668.78,1.52951993]
[1752092858062,0.26004304,669.5,668.79,1.52951993]
[1752092858258,0.26004304,669.5,668.46,1.66540134]
[1752092858461,0.26004304,669.5,668.47,1.53170624]
[1752092858757,0.26004304,669.5,668.48,1.53170624]
[1752092858962,0.26004304,669.5,668.49,1.53170624]
[1752092859162,0.26004304,669.5,668.5,1.53170624]
[1752092859462,0.26004304,669.5,668.51,1.53170624]
[1752092859664,0.26004304,669.5,668.52,1.53170624]
[1752092859859,0.26004304,669.5,668.53,1.53170624]
[1752092860065,3.3457195,669.84,668.54,1.53170624]
[1752092860261,3.3457195,669.83,668.55,1.53170624]
[1752092860564,0.26003721,669.59,668.56,1.53224663]
[1752092860764,0.26003721,669.59,668.57,1.53224663]
[1752092860967,0.26003721,669.59,668.49,1.66828414]
[1752092860968,0.26003721,669.59,668.58,1.53224663]
[1752092861165,0.26003721,669.59,668.59,1.53224663]
[1752092861365,0.26003721,669.59,668.6,1.53224663]
[1752092861565,0.26003721,669.59,668.61,1.53224663]
[1752092861765,0.26003721,669.59,668.62,1.53224663]
[1752092861966,0.26003721,669.59,668.63,1.53224663]
[1752092862165,0.26003721,669.59,668.64,1.53224663]
[1752092862462,0.26003721,669.59,668.65,1.53224663]
[1752092862663,0.26003721,669.59,668.66,1.53224663]
[1752092862963,0.26003721,669.59,668.67,1.53224663]
[1752092863263,0.26003721,669.59,668.68,1.53224663]
[1752092863461,0.26003721,669.59,668.69,1.53224663]
[1752092863665,0.26003721,669.59,668.7,1.53224663]
[1752092863962,0.26003721,669.59,668.71,1.53224663]
[1752092864263,0.26003721,669.59,668.72,1.53224663]
[1752092864461,0.26003721,669.59,668.73,1.53224663]
[1752092864766,0.26003721,669.59,668.74,1.53224663]
[1752092864965,0.26003721,669.59,668.75,1.53224663]
[1752092865165,0.26003721,669.59,668.76,1.53224663]
[1752092865366,0.26003721,669.59,668.77,1.53224663]
[1752092865661,0.26003721,669.59,668.78,1.53224663]
[1752092865861,0.26003721,669.59,668.79,1.53224663]
[1752092866160,0.26003721,669.59,668.8,3.33324663]
[1752092866362,0.26003721,669.59,668.81,1.53224663]
[1752092866566,0.26003721,669.59,668.8,1.801]
[1752092866768,0.26003721,669.59,668.81,1.53603185]
[1752092866971,0.26003721,669.59,668.8,1.801]
[1752092867168,0.26003721,669.59,668.81,1.53603038]
[1752092867370,0.26003721,669.59,668.8,1.801]
[1752092867567,0.26003721,669.59,668.81,1.5358781]
[1752092867770,0.26003721,669.59,668.8,1.801]
[1752092867969,0.26003721,669.59,668.81,1.53589461]
[1752092868171,0.26003721,669.59,668.82,1.53589461]
[1752092868368,0.26003721,669.59,668.83,1.53589461]
[1752092868671,0.26003721,669.59,668.84,1.53589461]
[1752092868969,0.26003721,669.59,668.85,1.53589461]
[1752092869271,0.26003721,669.59,668.8,1.801]
[1752092869465,0.26003721,669.59,668.81,1.53636185]
[1752092869767,0.26003721,669.59,668.8,1.801]
[1752092881975,3.3457195,669.55,668.8,1.801]
[1752092882277,3.3457195,669.46,668.8,1.801]
[1752092882575,3.3457195,669.42,668.8,1.801]
[1752092882874,3.3457195,669.4,668.8,1.801]
[1752092883875,3.3457195,669.38,668.8,1.801]
[1752092884375,3.3457195,669.4,668.8,1.801]
[1752092884572,3.3457195,669.39,668.8,1.801]
[1752092885095,3.3457195,669.37,668.8,1.801]
[1752092885277,3.3457195,669.36,668.8,1.801]
[1752092885776,3.3457195,669.34,668.8,1.801]
[1752092887972,3.3457195,669.35,668.8,1.801]
[1752092888172,3.3457195,669.31,668.8,1.801]
[1752092888577,3.3457195,669.29,668.8,1.801]
[1752092889178,3.3457195,669.28,668.8,1.801]
[1752092889677,3.3457195,669.26,668.8,1.801]
[1752092890474,3.3457195,669.28,668.8,1.801]
[1752092891379,3.3457195,669.29,668.8,1.801]
[1752092892980,3.3457195,669.3,668.8,1.801]
[1752092893282,3.3457195,669.26,668.8,1.801]
[1752092895283,3.3457195,669.27,668.8,1.801]
[1752092895782,3.3457195,669.25,668.8,1.801]
[1752092896487,3.3457195,669.26,668.8,1.801]
[1752092896787,3.3457195,669.25,668.8,1.801]
[1752092897086,3.3457195,669.26,668.8,1.801]
[1752092897887,3.3457195,669.28,668.8,1.801]
[1752092898188,3.3457195,669.32,668.8,1.801]
[1752092898388,3.3457195,669.33,668.8,1.801]